bitfinex/quotes_BTCUSD_20250602
["timestamp","ask_amount","ask_price","bid_price","bid_amount"]
[1748886780065,0.04791345,104350.0,104340.0,0.27189899]
[1748886780386,0.23957612,104350.0,104340.0,0.26231559]
[1748886780604,0.03833096,104350.0,104340.0,0.27189899]
[1748886780809,0.26257429,104350.0,104340.0,0.27189909]
[1748886781031,0.25299171,104350.0,104340.0,0.27189909]
[1748886781641,0.02874838,104350.0,104340.0,0.27648249]
[1748886781850,0.22999409,104350.0,104340.0,0.27648249]
[1748886782318,0.03833142,104350.0,104340.0,0.27089899]
[1748886782758,0.22999409,104350.0,104340.0,0.27089899]
[1748886782930,0.23957722,104350.0,104340.0,0.26589899]
[1748886783136,0.23957722,104350.0,104340.0,0.26989899]
[1748886783339,0.23957722,104350.0,104340.0,0.26031559]
[1748886783743,0.22999455,104350.0,104340.0,0.26031559]
[1748886783937,0.2731167,104350.0,104340.0,0.26031559]
[1748886784336,0.0718709,104350.0,104340.0,0.26989899]
[1748886784670,0.0287482,104350.0,104340.0,0.26989899]
[1748886786320,0.0287482,104350.0,104340.0,0.28779781]
[1748886786523,0.22041087,104350.0,104340.0,0.250732]
[1748886786872,0.23957704,104350.0,104340.0,0.27821443]
[1748886787078,0.22999455,104350.0,104340.0,0.27821443]
[1748886787285,0.27215844,104350.0,104340.0,0.250732]
[1748886787489,0.27215844,104350.0,104340.0,0.26031559]
[1748886788139,0.27215844,104350.0,104340.0,0.27821443]
[1748886788342,0.27215844,104350.0,104340.0,0.26031559]
[1748886789163,0.26257568,104350.0,104340.0,0.26031559]
[1748886790322,0.26257568,104350.0,104340.0,0.26989909]
[1748886792364,0.26257568,104350.0,104340.0,0.27948249]
[1748886792601,0.26257568,104350.0,104340.0,0.26989909]
[1748886793539,0.22041179,104350.0,104340.0,0.26989909]
[1748886795514,0.22041179,104350.0,104340.0,0.26031559]
[1748886795745,0.22041179,104350.0,104340.0,0.25073218]
[1748886796422,0.21082884,104350.0,104340.0,0.24114832]
[1748886797472,0.21082884,104350.0,104340.0,0.25073218]
[1748886797698,0.21082884,104350.0,104340.0,0.26031586]
[1748886798175,0.00958276,104350.0,104340.0,0.27948221]
[1748886798423,0.7236087,104370.0,104350.0,0.2108281]
[1748886798647,1.06721681,104370.0,104360.0,0.24380845]
[1748886798844,0.72721681,104370.0,104360.0,0.24380845]
[1748886799055,0.68982594,104370.0,104360.0,0.23422642]
[1748886799485,0.68982594,104370.0,104360.0,0.24380845]
[1748886799692,0.68982594,104370.0,104360.0,0.25339038]
[1748886799893,0.69656425,104370.0,104360.0,0.25339038]
[1748886800145,0.69582594,104370.0,104360.0,0.24380845]
[1748886800326,0.70656425,104370.0,104360.0,0.24380845]
[1748886800505,0.69382594,104370.0,104360.0,0.24380845]
[1748886800906,0.69982594,104370.0,104360.0,0.24380845]
[1748886801111,0.70656428,104370.0,104360.0,0.24380845]
[1748886801290,0.73895264,104370.0,104360.0,0.25339038]
[1748886801525,0.7322143,104370.0,104360.0,0.26297204]
[1748886801735,0.70656428,104370.0,104360.0,0.25339038]
[1748886801928,0.69982594,104370.0,104360.0,0.26297222]
[1748886802129,0.70656426,104370.0,104360.0,0.26297222]
[1748886802452,0.73895378,104370.0,104360.0,0.27255397]
[1748886802672,0.73221546,104370.0,104360.0,0.27255397]
[1748886802877,0.73895379,104370.0,104360.0,0.27255397]
[1748886803013,0.73221547,104370.0,104360.0,0.24380845]
[1748886803512,0.73221547,104370.0,104360.0,0.25339038]
[1748886804098,0.73221547,104370.0,104360.0,0.26257222]
[1748886804240,0.73221547,104370.0,104360.0,0.27215397]
[1748886804435,0.73895381,104370.0,104360.0,0.27215397]
[1748886804755,0.73221547,104370.0,104360.0,0.33727751]
[1748886805121,0.73895378,104370.0,104360.0,0.33727751]
[1748886805329,0.73895378,104370.0,104360.0,0.24210826]
[1748886805531,0.73221547,104370.0,104360.0,0.23252642]
[1748886805794,0.73221547,104370.0,104360.0,0.23422651]
[1748886806158,0.73221547,104370.0,104360.0,0.24380863]
[1748886806943,0.73222475,104370.0,104360.0,0.24380863]
[1748886807061,0.73222475,104370.0,104360.0,0.2629724]
[1748886807471,0.73896306,104370.0,104360.0,0.25339056]
[1748886807697,0.73222475,104370.0,104360.0,0.25339056]
[1748886808296,0.73222475,104370.0,104360.0,0.27255415]
[1748886808499,0.54059881,104370.0,104360.0,0.27255397]
[1748886808936,0.51778065,104370.0,104360.0,0.27255397]
[1748886809113,0.5082,104370.0,104360.0,0.27255397]
[1748886809541,0.51778056,104370.0,104360.0,0.27255397]
[1748886809733,0.5273613,104370.0,104360.0,0.27255397]
[1748886809940,0.51778056,104370.0,104360.0,0.29051656]
[1748886810146,0.5082,104370.0,104360.0,0.29051655]
[1748886810373,0.01,104370.0,104360.0,0.27255397]
[1748886810770,0.01958056,104370.0,104360.0,0.36419397]
[1748886811956,0.01,104370.0,104360.0,0.36419397]
[1748886812160,0.01958056,104370.0,104360.0,0.38215449]
[1748886812359,0.01958056,104370.0,104360.0,0.38215309]
[1748886812553,0.01958056,104370.0,104360.0,0.36419397]
[1748886813232,0.0582286,104370.0,104360.0,0.36419397]
[1748886813645,0.06780953,104370.0,104360.0,0.38215106]
[1748886813847,0.06780953,104370.0,104360.0,0.36419397]
[1748886814054,0.0582286,104370.0,104360.0,0.38214814]
[1748886814255,0.06780953,104370.0,104360.0,0.38214721]
[1748886814486,0.0582286,104370.0,104360.0,0.36419397]
[1748886814754,0.0291613,104370.0,104360.0,0.36419397]
[1748886814920,0.03874213,104370.0,104360.0,0.56875397]
[1748886815928,0.0291613,104370.0,104360.0,0.58670511]
[1748886816211,0.02916121,104370.0,104360.0,0.56875397]
[1748886816415,0.01,104370.0,104360.0,0.56875397]
[1748886816662,0.01,104370.0,104360.0,0.65395963]
[1748886816866,0.01,104370.0,104360.0,0.67190868]
[1748886817061,0.01,104370.0,104360.0,0.65395963]
[1748886818133,0.01,104370.0,104360.0,0.6719081]
[1748886818301,0.01,104370.0,104360.0,0.65395963]
[1748886818788,0.01958047,104370.0,104360.0,0.65395963]
[1748886818994,0.01,104370.0,104360.0,0.65395963]
[1748886819872,0.11744575,104390.0,104370.0,0.25086854]
[1748886820071,0.11744575,104390.0,104380.0,0.20118795]
[1748886820072,0.45792989,104390.0,104380.0,0.20118795]
[1748886820292,0.45792989,104390.0,104380.0,0.0155]
[1748886821276,0.49766297,104390.0,104380.0,0.0155]
[1748886822351,0.52667162,104390.0,104380.0,0.0155]
[1748886822686,0.52667162,104390.0,104380.0,0.05087993]
[1748886822884,0.52667162,104390.0,104380.0,0.24248751]
[1748886823112,0.52667162,104390.0,104380.0,0.24348751]
[1748886823298,0.52667162,104390.0,104380.0,0.20910758]
[1748886823702,0.52667162,104390.0,104380.0,0.0175]
[1748886829838,0.55904895,104390.0,104380.0,0.0175]
[1748886831182,0.55904895,104390.0,104380.0,0.0337]
[1748886832014,0.55904895,104390.0,104380.0,0.22530758]
[1748886832221,0.45058622,104390.0,104380.0,0.30053164]
[1748886832426,0.4379625,104390.0,104380.0,0.31011137]
[1748886832632,0.40895421,104390.0,104380.0,0.31011137]
[1748886833485,0.40895421,104390.0,104380.0,0.30811137]
[1748886833723,0.40895421,104390.0,104380.0,0.2626276]
[1748886833943,0.40895421,104390.0,104380.0,0.2636276]
[1748886834982,0.41853357,104390.0,104380.0,0.5597876]
[1748886835474,0.6101228,104390.0,104380.0,0.5597876]
[1748886835683,0.61970226,104390.0,104380.0,0.55020787]
[1748886835892,0.61970226,104390.0,104380.0,0.5597876]
[1748886836100,0.62868454,104390.0,104380.0,0.55978779]
[1748886836519,0.62868454,104390.0,104380.0,0.64505122]
[1748886836723,0.62868454,104390.0,104380.0,0.64505141]
[1748886836937,0.62643897,104390.0,104380.0,0.35847123]
[1748886837186,0.62868454,104390.0,104380.0,0.35847059]
[1748886837402,0.61970226,104390.0,104380.0,0.35847059]
[1748886837623,0.62868454,104390.0,104380.0,0.35847059]
[1748886837829,0.61970226,104390.0,104380.0,0.35847059]
[1748886838083,0.61970226,104390.0,104380.0,0.27320716]
[1748886839102,0.62643897,104390.0,104380.0,0.27320716]
[1748886839325,0.61970226,104390.0,104380.0,0.26362743]
[1748886839520,0.61910582,104390.0,104380.0,0.26362743]
[1748886839719,0.61686025,104390.0,104380.0,0.25404761]
[1748886839951,0.61012354,104390.0,104380.0,0.25404761]
[1748886840153,0.60054454,104390.0,104380.0,0.25404761]
[1748886841080,0.60054454,104390.0,104380.0,0.0337]
[1748886841285,0.58138591,104390.0,104380.0,0.0337]
[1748886841487,0.622758,104390.0,104380.0,0.22530758]
[1748886841683,0.62949553,104390.0,104380.0,0.22530758]
[1748886841923,0.61377562,104390.0,104380.0,0.22530758]
[1748886842151,0.61377562,104390.0,104380.0,0.0337]
[1748886842403,0.62275845,104390.0,104380.0,0.0337]
[1748886842625,0.6205128,104390.0,104380.0,0.23488795]
[1748886842847,0.60419616,104390.0,104380.0,0.23488795]
[1748886843551,0.61317907,104390.0,104380.0,0.23488795]
[1748886843772,0.61093334,104390.0,104380.0,0.23488795]
[1748886843992,0.60419616,104390.0,104380.0,0.23488795]
[1748886844450,0.60419616,104390.0,104380.0,0.04328037]
[1748886844681,0.60419616,104390.0,104380.0,0.23488795]
[1748886845523,0.58078936,104390.0,104380.0,0.0337]
[1748886845727,0.60421875,104390.0,104380.0,0.0337]
[1748886845947,0.61320166,104390.0,104380.0,0.0337]
[1748886846155,0.61993884,104390.0,104380.0,0.0337]
[1748886846361,0.60421875,104390.0,104380.0,0.0337]
[1748886846573,0.60421875,104390.0,104380.0,0.22530758]
[1748886846794,0.61320166,104390.0,104380.0,0.0337]
[1748886847046,0.60421875,104390.0,104380.0,0.0337]
[1748886847953,0.60421875,104390.0,104380.0,0.002]
[1748886847954,0.69672997,104390.0,104380.0,0.002]
[1748886848170,0.71142997,104390.0,104380.0,0.002]
[1748886848400,0.20118795,104380.0,104370.0,0.0321]
[1748886848599,0.23360025,104380.0,104370.0,0.23330723]
[1748886849023,0.23360025,104380.0,104370.0,0.0321]
[1748886849450,0.2336124,104380.0,104370.0,0.0321]
[1748886849610,0.2336124,104380.0,104370.0,0.0159]
[1748886851482,0.2336124,104380.0,104370.0,0.0312]
[1748886853627,0.23362596,104380.0,104370.0,0.0312]
[1748886853835,0.23362596,104380.0,104370.0,0.22282594]
[1748886854041,0.24320606,104380.0,104370.0,0.24198807]
[1748886854417,0.24320606,104380.0,104370.0,0.23240705]
[1748886854679,0.23362596,104380.0,104370.0,0.23240705]
[1748886855088,0.23362596,104380.0,104370.0,0.23240723]
[1748886855671,0.23362596,104380.0,104370.0,0.24198843]
[1748886857345,0.23363249,104380.0,104370.0,0.24198843]
[1748886858192,0.23363249,104380.0,104370.0,0.25156954]
[1748886858748,0.23363249,104380.0,104370.0,0.26115056]
[1748886860321,0.23363249,104380.0,104370.0,0.27073149]
[1748886861154,0.24321259,104380.0,104370.0,0.27073149]
[1748886861361,0.24321788,104380.0,104370.0,0.27073149]
[1748886861572,0.24321788,104380.0,104370.0,0.27073103]
[1748886862450,0.24321788,104380.0,104370.0,0.24198825]
[1748886862669,0.24321788,104380.0,104370.0,0.25156927]
[1748886863083,0.24321788,104380.0,104370.0,0.2611502]
[1748886863290,0.24321788,104380.0,104370.0,0.25156927]
[1748886863501,0.23363778,104380.0,104370.0,0.25156927]
[1748886865208,0.22405741,104380.0,104370.0,0.22282594]
[1748886865806,0.22405741,104380.0,104370.0,0.23240714]
[1748886866763,0.21080355,104370.0,104360.0,0.0328]
[1748886866987,0.24325338,104370.0,104360.0,0.0328]
[1748886867639,0.24325338,104370.0,104360.0,0.2244443]
[1748886867845,0.24325338,104370.0,104360.0,0.0328]
[1748886868462,0.24325338,104370.0,104360.0,0.0358]
[1748886868663,0.24325338,104370.0,104360.0,0.0398]
[1748886868988,0.21080355,104370.0,104360.0,0.0398]
[1748886869193,0.24325175,104370.0,104360.0,0.0398]
[1748886870727,0.77778035,104370.0,104360.0,0.0235]
[1748886870935,0.77778035,104370.0,104360.0,0.022]
[1748886871143,0.58999034,104370.0,104360.0,0.037]
[1748886871358,0.57367073,104370.0,104360.0,0.037]
[1748886871749,0.57367073,104370.0,104360.0,0.03]
[1748886871958,0.57567073,104370.0,104360.0,0.03]
[1748886872167,0.57567073,104370.0,104360.0,0.2216443]
[1748886872380,0.57567073,104370.0,104360.0,0.24080835]
[1748886872793,0.57567073,104370.0,104360.0,0.23960288]
[1748886873006,0.57567073,104370.0,104360.0,0.249185]
[1748886873224,0.58525175,104370.0,104360.0,0.26834883]
[1748886873647,0.61914572,104370.0,104360.0,0.25039029]
[1748886874050,0.6095647,104370.0,104360.0,0.24080845]
[1748886874469,0.6095647,104370.0,104360.0,0.2587671]
[1748886874676,0.6095647,104370.0,104360.0,0.24080845]
[1748886876339,0.29829172,104370.0,104360.0,0.25997222]
[1748886876569,0.29829254,104370.0,104360.0,0.26955397]
[1748886876798,0.09708485,104370.0,104360.0,0.26955342]
[1748886877017,0.10662729,104370.0,104360.0,0.28744309]
[1748886877246,0.29825323,104370.0,104360.0,0.26955351]
[1748886877471,0.30783452,104370.0,104360.0,0.28744329]
[1748886877911,0.30783452,104370.0,104360.0,0.26955351]
[1748886878116,0.34819799,104370.0,104360.0,0.24911879]
[1748886878342,0.33861716,104370.0,104360.0,0.25870104]
[1748886878554,0.33861716,104370.0,104360.0,0.26834779]
[1748886878759,0.27909184,104370.0,104360.0,0.23122633]
[1748886878961,0.27909184,104370.0,104360.0,0.2491839]
[1748886879169,0.27909184,104370.0,104360.0,0.23122633]
[1748886879593,0.27909184,104370.0,104360.0,0.25876582]
[1748886879992,0.27909184,104370.0,104360.0,0.24080826]
[1748886880819,0.27909032,104370.0,104360.0,0.2503901]
[1748886881023,0.27909032,104370.0,104360.0,0.26834766]
[1748886881230,0.27909032,104370.0,104360.0,0.2503901]
[1748886881906,0.27909032,104370.0,104360.0,0.24918465]
[1748886882132,0.27909032,104370.0,104360.0,0.23122633]
[1748886882388,0.27909032,104370.0,104360.0,0.24080826]
[1748886882889,0.27909032,104370.0,104360.0,0.23122633]
[1748886883342,0.26950912,104370.0,104360.0,0.23122642]
[1748886883570,0.26950912,104370.0,104360.0,0.24918429]
[1748886883798,0.26950912,104370.0,104360.0,0.23122642]
[1748886884261,0.26950912,104370.0,104360.0,0.24080845]
[1748886884462,0.26950912,104370.0,104360.0,0.03]
[1748886884899,0.26952188,104370.0,104360.0,0.03]
[1748886885318,0.26952188,104370.0,104360.0,0.04795932]
[1748886885521,0.26952188,104370.0,104360.0,0.03]
[1748886886142,0.26952188,104370.0,104360.0,0.04795961]
[1748886886342,0.26952188,104370.0,104360.0,0.03]
[1748886888016,0.31630866,104370.0,104360.0,0.03]
[1748886888241,0.26952188,104370.0,104360.0,0.03]
[1748886888737,0.26953557,104370.0,104360.0,0.03]
[1748886891520,0.26953557,104370.0,104360.0,0.2216443]
[1748886891769,0.26953557,104370.0,104360.0,0.23122651]
[1748886891978,0.26953557,104370.0,104360.0,0.24080863]
[1748886892181,0.26953557,104370.0,104360.0,0.25997241]
[1748886893599,0.26953557,104370.0,104360.0,0.25039066]
[1748886894212,0.26953557,104370.0,104360.0,0.2599725]
[1748886894818,0.27911659,104370.0,104360.0,0.2599725]
[1748886895007,0.27911659,104370.0,104360.0,0.26955425]
[1748886895205,0.28869715,104370.0,104360.0,0.26955361]
[1748886895437,0.10665241,104370.0,104360.0,0.26955361]
[1748886895737,0.09707121,104370.0,104360.0,0.26955361]
[1748886895960,0.29827844,104370.0,104360.0,0.26955361]
[1748886896191,0.09707121,104370.0,104360.0,0.26955361]
[1748886896426,0.29827835,104370.0,104360.0,0.26955361]
[1748886896627,0.10665241,104370.0,104360.0,0.26955361]
[1748886897570,0.2982789,104370.0,104360.0,0.25997204]
[1748886898171,0.2982789,104370.0,104360.0,0.2695537]
[1748886899013,0.29829255,104370.0,104360.0,0.2695537]
[1748886900276,0.28871153,104370.0,104360.0,0.25997204]
[1748886900485,0.28871153,104370.0,104360.0,0.25039029]
[1748886900684,0.28871499,104370.0,104360.0,0.25997204]
[1748886901094,0.19853008,104370.0,104360.0,0.25997204]
[1748886901713,0.01916194,104370.0,104360.0,0.35348036]
[1748886901925,0.02874241,104370.0,104360.0,0.35538036]
[1748886902128,0.03832352,104370.0,104360.0,0.35538036]
[1748886902332,0.23953075,104370.0,104360.0,0.34579888]
[1748886903286,0.23953075,104370.0,104360.0,0.26187158]
[1748886903503,0.23953075,104370.0,104360.0,0.25228992]
[1748886903702,0.22995019,104370.0,104360.0,0.25228992]
[1748886904167,0.22995019,104370.0,104360.0,0.26187158]
[1748886905126,0.22995019,104370.0,104360.0,0.25228992]
[1748886905979,0.21078834,104370.0,104360.0,0.0319]
[1748886906181,0.21078834,104370.0,104360.0,0.23312651]
[1748886906763,0.21078834,104370.0,104360.0,0.24270863]
[1748886907183,0.20120723,104370.0,104360.0,0.0319]
[1748886907385,0.26756444,104370.0,104360.0,0.0319]
[1748886908551,0.26757465,104370.0,104360.0,0.24270835]
[1748886908768,0.26757465,104370.0,104360.0,0.24270845]
[1748886908982,0.25799336,104370.0,104360.0,0.23312642]
[1748886909208,0.25799336,104370.0,104360.0,0.24270845]
[1748886909854,0.25799336,104370.0,104360.0,0.23312642]
[1748886910727,0.25799336,104370.0,104360.0,0.24270845]
[1748886910948,0.22407727,104370.0,104360.0,0.24270845]
[1748886911385,0.22407727,104370.0,104360.0,0.25229038]
[1748886912293,0.19162594,104370.0,104360.0,0.25229038]
[1748886912513,0.22409571,104370.0,104360.0,0.25229038]
[1748886914584,0.05163126,104370.0,104360.0,0.27145379]
[1748886914811,0.06121246,104370.0,104360.0,0.27145379]
[1748886915692,0.26241914,104370.0,104360.0,0.27145379]
[1748886916546,0.29635245,104370.0,104360.0,0.27145379]
[1748886916761,0.10472651,104370.0,104360.0,0.27145379]
[1748886916995,0.26241914,104370.0,104360.0,0.27145379]
[1748886917452,0.0707932,104370.0,104360.0,0.27145379]
[1748886917878,0.07079311,104370.0,104360.0,0.27145379]
[1748886918813,0.07079311,104370.0,104360.0,0.30838626]
[1748886919271,0.0664047,104370.0,104360.0,0.30838626]
[1748886919675,0.03393493,104370.0,104360.0,0.30838626]
[1748886919894,0.03393493,104370.0,104360.0,0.27145379]
[1748886920332,0.23666591,104380.0,104370.0,0.25136872]
[1748886920578,0.26913197,104380.0,104370.0,0.25136872]
[1748886921036,0.27871234,104380.0,104370.0,0.24178807]
[1748886921256,0.27871234,104380.0,104370.0,0.2513689]
[1748886921698,0.27871234,104380.0,104370.0,0.26094964]
[1748886921942,0.27871234,104380.0,104370.0,0.26294964]
[1748886922159,0.30305576,104380.0,104370.0,0.26294964]
[1748886925149,0.30305576,104380.0,104370.0,0.2533689]
[1748886925368,0.29347584,104380.0,104370.0,0.2533689]
[1748886926025,0.29347584,104380.0,104370.0,0.24378807]
[1748886927387,0.28389574,104380.0,104370.0,0.24378825]
[1748886927833,0.27431546,104380.0,104370.0,0.24378825]
[1748886928058,0.27427694,104380.0,104370.0,0.22462594]
[1748886928280,0.34474928,104380.0,104370.0,0.0175]
[1748886928526,0.34474928,104380.0,104370.0,0.002]
[1748886928975,0.25800925,104380.0,104370.0,0.002]
[1748886929206,0.23078908,104380.0,104370.0,0.002]
[1748886931446,0.00958111,104370.0,104360.0,0.0304]
[1748886931657,0.23510846,104370.0,104360.0,0.0304]
[1748886931872,0.26755157,104370.0,104360.0,0.0304]
[1748886933369,0.27713259,104370.0,104360.0,0.2220443]
[1748886933573,0.27713259,104370.0,104360.0,0.27587096]
[1748886934187,0.27713259,104370.0,104360.0,0.25670737]
[1748886934411,0.27713259,104370.0,104360.0,0.24120835]
[1748886935033,0.27713259,104370.0,104360.0,0.26037167]
[1748886935034,0.03390141,104370.0,104360.0,0.26037167]
[1748886935250,0.06937918,104380.0,104370.0,0.25176872]
[1748886935457,0.0826527,104380.0,104370.0,0.25176872]
[1748886935662,0.09223252,104380.0,104370.0,0.54768872]
[1748886935876,0.09222861,104380.0,104370.0,0.54768872]
[1748886936100,0.08264879,104380.0,104370.0,0.63268633]
[1748886936303,0.09422861,104380.0,104370.0,0.63368633]
[1748886936722,0.09622861,104380.0,104370.0,0.63468633]
[1748886936963,0.07706915,104380.0,104370.0,0.63468633]
[1748886937168,0.09622843,104380.0,104370.0,0.63468633]
[1748886937783,0.0866487,104380.0,104370.0,0.63468633]
[1748886938231,0.10580826,104380.0,104370.0,0.63468633]
[1748886938437,0.11538836,104380.0,104370.0,0.54968872]
[1748886938666,0.10580826,104380.0,104370.0,0.54968872]
[1748886939078,0.09622834,104380.0,104370.0,0.54968872]
[1748886939287,0.10580816,104380.0,104370.0,0.54968872]
[1748886939690,0.11537176,104380.0,104370.0,0.54968872]
[1748886940331,0.09621202,104380.0,104370.0,0.63488633]
[1748886940542,0.10579175,104380.0,104370.0,0.63488633]
[1748886940957,0.10579175,104380.0,104370.0,0.54968872]
[1748886941160,0.11537167,104380.0,104370.0,0.54968872]
[1748886941778,0.10579175,104380.0,104370.0,0.54968872]
[1748886941983,0.11537157,104380.0,104370.0,0.54968872]
[1748886943444,0.12495149,104380.0,104370.0,0.54968872]
[1748886943646,0.10578187,104380.0,104370.0,0.54968872]
[1748886943860,0.11536179,104380.0,104370.0,0.54968872]
[1748886945639,0.11536179,104380.0,104370.0,0.63488633]
[1748886945846,0.12494189,104380.0,104370.0,0.63488633]
[1748886946860,0.12494189,104380.0,104370.0,0.54968872]
[1748886947874,0.31655075,104380.0,104370.0,0.54964872]
[1748886948073,0.12494317,104380.0,104370.0,0.54964872]
[1748886948653,0.11536289,104380.0,104370.0,0.54964872]
[1748886949340,0.0962026,104380.0,104370.0,0.54964872]
[1748886949545,0.1057827,104380.0,104370.0,0.54964872]
[1748886949782,0.11536289,104380.0,104370.0,0.54964872]
[1748886951547,0.11537256,104380.0,104370.0,0.54964872]
[1748886954168,0.10579237,104380.0,104370.0,0.54964872]
[1748886958614,0.09621227,104380.0,104370.0,0.54964872]
[1748886958843,0.01073839,104380.0,104370.0,0.54964872]
[1748886959047,0.01073839,104380.0,104370.0,0.64550302]
[1748886960985,0.00873839,104380.0,104370.0,0.64450302]
[1748886961188,0.00673839,104380.0,104370.0,0.64350302]
[1748886961401,0.00873839,104380.0,104370.0,0.73601424]
[1748886963956,0.00873839,104380.0,104370.0,1.57693142]
[1748886964164,0.00722167,104390.0,104380.0,0.2524476]
[1748886964375,0.00722167,104390.0,104380.0,0.4397019]
[1748886965484,0.00722167,104390.0,104380.0,2.02553908]
[1748886965696,0.00722167,104390.0,104380.0,2.13559115]
[1748886965911,0.10572278,104440.0,104430.0,0.22024211]
[1748886965912,0.13958123,104440.0,104430.0,0.22024211]
[1748886966124,0.09611242,104440.0,104430.0,0.25194211]
[1748886966334,0.10573542,104440.0,104430.0,0.25194211]
[1748886966573,0.45531011,104440.0,104430.0,0.25194211]
[1748886966782,0.35515738,104440.0,104430.0,0.25194211]
[1748886966991,0.68558361,104440.0,104430.0,0.24236714]
[1748886967175,0.15346907,104440.0,104430.0,0.2298178]
[1748886967407,0.14451123,104440.0,104430.0,0.2298178]
[1748886967622,0.48451123,104440.0,104430.0,0.2448178]
[1748886967821,0.67600874,104440.0,104430.0,0.23524256]
[1748886968029,0.67600874,104440.0,104430.0,0.24481789]
[1748886968704,0.59904496,104440.0,104430.0,0.24681789]
[1748886970121,0.59904496,104440.0,104430.0,0.26191789]
[1748886970568,0.59904496,104440.0,104430.0,0.25234256]
[1748886971080,0.58947036,104440.0,104430.0,0.25234256]
[1748886971675,0.24947036,104440.0,104430.0,0.26191789]
[1748886971881,0.24947036,104440.0,104430.0,0.25234256]
[1748886972052,0.24947036,104440.0,104430.0,0.25234265]
[1748886972260,0.23989567,104440.0,104430.0,0.23319154]
[1748886972478,0.23989567,104440.0,104430.0,0.24276714]
[1748886972894,0.23989567,104440.0,104430.0,0.20861584]
[1748886973246,0.23989567,104440.0,104430.0,0.22776695]
[1748886973739,0.23989567,104440.0,104430.0,0.20861584]
[1748886973943,0.23032089,104440.0,104430.0,0.002]
[1748886975573,0.23032089,104440.0,104430.0,0.20309154]
[1748886976160,0.23032089,104440.0,104430.0,0.24486705]
[1748886976390,0.23032089,104440.0,104430.0,0.23529154]
[1748886977792,0.23032089,104440.0,104430.0,0.0342]
[1748886978197,0.23032089,104440.0,104430.0,0.20309154]
[1748886978398,0.23989567,104440.0,104430.0,0.22846714]
[1748886978604,0.23989567,104440.0,104430.0,0.24426714]
[1748886979564,0.23989567,104440.0,104430.0,0.2218166]
[1748886979770,0.23989567,104440.0,104430.0,0.0316]
[1748886979980,0.20109144,104430.0,104420.0,0.22423418]
[1748886980204,0.21066695,104430.0,104420.0,0.63038713]
[1748886980432,0.21066695,104430.0,104420.0,0.62081079]
[1748886980433,0.22024237,104430.0,104420.0,0.62081079]
[1748886980632,0.22024237,104430.0,104420.0,0.63038731]
[1748886980633,0.21066695,104430.0,104420.0,0.63038731]
[1748886980837,0.22024274,104430.0,104420.0,0.63996365]
[1748886981252,0.22024274,104430.0,104420.0,0.6495398]
[1748886981717,0.22024274,104430.0,104420.0,0.63996365]
[1748886982139,0.22024274,104430.0,104420.0,0.6495398]
[1748886982363,0.22024274,104430.0,104420.0,0.63996365]
[1748886982595,0.22024274,104430.0,104420.0,0.63038731]
[1748886982793,0.22024274,104430.0,104420.0,0.25296374]
[1748886983008,0.2652991,104430.0,104420.0,0.55818008]
[1748886983210,0.2652991,104430.0,104420.0,0.56775633]
[1748886984055,0.22024274,104430.0,104420.0,0.56775633]
[1748886984260,0.0287269,104430.0,104420.0,0.56775633]
[1748886984403,0.02872635,104430.0,104420.0,0.27211578]
[1748886985030,0.03830205,104430.0,104420.0,0.56775578]
[1748886985602,0.03830205,104430.0,104420.0,0.27211578]
[1748886985808,0.03830205,104430.0,104420.0,0.56775578]
[1748886986257,0.22981844,104430.0,104420.0,0.54860347]
[1748886986461,0.27583237,104430.0,104420.0,0.54860347]
[1748886986653,0.27583237,104430.0,104420.0,0.55817962]
[1748886986879,0.22981844,104430.0,104420.0,0.55817962]
[1748886987082,0.22981844,104430.0,104420.0,0.54860347]
[1748886987230,0.22024293,104430.0,104420.0,0.54860347]
[1748886987851,0.22024293,104430.0,104420.0,0.55817972]
[1748886988052,0.02872598,104430.0,104420.0,0.62797686]
[1748886988236,0.02872598,104430.0,104420.0,0.56771541]
[1748886988444,0.22024182,104430.0,104420.0,0.55813935]
[1748886988670,0.02872598,104430.0,104420.0,0.56771541]
[1748886989075,0.22024182,104430.0,104420.0,0.56771541]
[1748886989277,0.22981761,104430.0,104420.0,0.23381088]
[1748886989499,0.25668108,104430.0,104420.0,0.24338749]
[1748886989747,0.25668108,104430.0,104420.0,0.25296401]
[1748886990140,0.21066723,104430.0,104420.0,0.26254044]
[1748886990310,0.21964606,104430.0,104420.0,0.27211678]
[1748886990511,0.21066723,104430.0,104420.0,0.27211678]
[1748886990713,0.21066723,104430.0,104420.0,0.26254044]
[1748886990918,0.21964606,104430.0,104420.0,0.26254044]
[1748886991117,0.21066723,104430.0,104420.0,0.26254044]
[1748886991316,0.21964606,104430.0,104420.0,0.26254044]
[1748886991525,0.21066723,104430.0,104420.0,0.26254044]
[1748886991706,0.21066723,104430.0,104420.0,0.27211678]
[1748886992750,0.20109163,104430.0,104420.0,0.26254044]
[1748886993167,0.20109163,104430.0,104420.0,0.25296401]
[1748886993387,0.20109163,104430.0,104420.0,0.26254044]
[1748886993595,0.21007046,104430.0,104420.0,0.26254044]
[1748886994045,0.19151584,104430.0,104420.0,0.25296383]
[1748886994679,0.19151584,104430.0,104420.0,0.25296401]
[1748886994879,0.19151584,104430.0,104420.0,0.26254044]
[1748886995741,0.20049474,104430.0,104420.0,0.26254044]
[1748886995944,0.19151584,104430.0,104420.0,0.26254044]
[1748886996120,0.19151584,104430.0,104420.0,0.24338749]
[1748886996618,0.19151584,104430.0,104420.0,0.25296401]
[1748886996931,0.20049474,104430.0,104420.0,0.25296401]
[1748886997133,0.19151584,104430.0,104420.0,0.23381088]
[1748886997547,0.19151584,104430.0,104420.0,0.2433874]
[1748886997983,0.19151584,104430.0,104420.0,0.0327]
[1748886998195,0.01915423,104410.0,104400.0,0.3020154]
[1748886998390,0.0095768,104410.0,104400.0,0.40744778]
[1748886998597,0.0095768,104410.0,104400.0,0.70304778]
[1748886998796,0.0095768,104410.0,104400.0,0.73534778]
[1748886999267,0.0095768,104410.0,104400.0,0.74034778]
[1748886999817,0.21070267,104420.0,104410.0,0.25278429]
[1748887000356,0.21968209,104420.0,104410.0,0.25278429]
[1748887000577,0.21968208,104420.0,104410.0,0.25278429]
[1748887000814,0.21968211,104420.0,104410.0,0.25278429]
[1748887001018,0.21070267,104420.0,104410.0,0.25278429]
[1748887001224,0.21070267,104420.0,104410.0,0.25578429]
[1748887001444,0.21070267,104420.0,104410.0,0.55138447]
[1748887001882,0.21968224,104420.0,104410.0,0.55538447]
[1748887002095,0.29331997,104420.0,104410.0,0.0395]
[1748887002303,0.30229974,104420.0,104410.0,0.0395]
[1748887002514,0.21070267,104420.0,104410.0,0.21817612]
[1748887002762,0.21070267,104420.0,104410.0,0.22775356]
[1748887003386,0.21968229,104420.0,104410.0,0.22775356]
[1748887003593,0.21070267,104420.0,104410.0,0.22775356]
[1748887003803,0.21968227,104420.0,104410.0,0.22775356]
[1748887004020,0.21070267,104420.0,104410.0,0.22775356]
[1748887004440,0.21070267,104420.0,104410.0,0.02662359]
[1748887004648,0.20112624,104420.0,104410.0,0.02662359]
[1748887005047,0.20112624,104420.0,104410.0,0.22775365]